{"text_format":"1","workbook":"xlsx","n_sheets":1,"sheets":["TAI"],"not_rendered":{"charts":0,"images":5,"macros":1,"external_links":0,"defined_names":14,"comments":1,"pivot_tables":0},"unopened":[],"bounds":{"document_bytes":16777216,"sheet_cells":100000,"rows_first":2000,"rows_last":500,"rows_between":2000,"halvings":0,"cell_chars":16384,"cell_head_chars":4096},"cells_cut":0,"cells_raw":0,"read":"whole","date_system":"1900"}

{"sheet":"TAI","index":0,"n_rows":34,"n_cols":13,"rows_kept":34,"cut":false,"hidden":false,"merged":[[33,1,33,10],[18,1,19,4],[23,5,23,10],[23,1,23,3],[15,1,15,4],[17,1,17,4],[20,1,21,4],[8,8,9,10],[1,1,1,5],[18,5,19,5],[20,5,21,5],[3,1,3,4],[5,1,5,4],[7,1,7,4],[9,1,9,4],[11,1,11,4],[13,1,13,4]]}
[null,null,null,null,null,null,null,"Année","Tarif par véhicule manquant (€)","Objectif % véhicules à faibles émissions","Seuil taille de flotte (véhicules)"]
[null,"SAISISSEZ LES INFORMATIONS DANS LES CHAMPS JAUNES",null,null,null,null,"Mise à jour : 13 ocbre 2025",2025,2000,0.15,100]
[null,null,null,null,null,null,null,2026,4000,0.18]
[null,"Année de calcul",null,null,null,2026,null,2027,5000,0.25]
[null,null,null,null,null,null,null,2028,5000,0.3]
[null,"Taille de flotte proratisée",null,null,null,{"$f":"SOMME($B$27:$B$34)","v":373},null,2029,5000,0.35]
[null,null,null,null,null,"X",null,2030,5000,0.48]
[null,{"$f":"\"Objectif VFE \"&Année&\" de verdissement de la flotte\"","v":"Objectif VFE 2026 de verdissement de la flotte"},null,null,null,{"$f":"SIERREUR(_xlfn.RECHERCHEX(MIN(F4;2030);Years;Objectifs);INDEX(Objectifs;EQUIV(MIN(F4;2030);Years;0)))","v":0.18}]
[null,null,null,null,null,{"$f":"\"=\"","v":"="},null,null,null,null,null,null,2.48]
[null,"Véhicules à faible émission requis",null,null,null,{"$f":"SI(F6=0;0;ARRONDI.SUP(F8*F6;0))","v":68},null,null,null,null,null,null,3.48]
[null,null,null,null,null,{"$f":"\"--\"","v":"--"},null,null,null,null,null,null,4.4800000000000004]
[null,"VFE réels (proratisés, CO2 ≤ 50)",null,null,null,{"$f":"SI(SOMME($C$27:$C$34)=0;0;ARRONDI(SOMME($C$27:$C$34);0))","v":21},null,null,null,null,null,null,5.48]
[null,null,null,null,null,{"$f":"\"=\"","v":"="},null,null,null,null,null,null,6.48]
[null,"Écart (véhicules manquants)",null,null,null,{"$f":"MAX(F10-F12;0)","v":47},null,null,null,null,null,null,7.48]
[null,null,null,null,null,"X",null,null,null,null,null,null,8.48]
[null,{"$f":"\"Tarif \"&Année&\" par véhicule manquant\"","v":"Tarif 2026 par véhicule manquant"},null,null,null,{"$f":"SIERREUR(_xlfn.RECHERCHEX(MIN(F4;2030);Tarifs;Objectifs);INDEX(Tarifs;EQUIV(MIN(F4;2030);Years;0)))","v":4000},null,null,null,null,null,null,9.48]
[null,null,null,null,null,"X",null,null,null,null,null,null,10.48]
[null,{"$f":"\"Taux annuel de renouvellement de véhicules très émetteurs (\"&SOMME($D$27:$D34)&\"/\"&ARRONDI(FlottePonderee;0)&\")\"","v":"Taux annuel de renouvellement de véhicules très émetteurs (25/373)"},null,null,null,{"$f":"SOMME($D$27:$D$34)/FlottePonderee","v":6.7024128686327081E-2},null,null,null,null,null,null,11.48]
[null,{"$f":"SI(F6<SeuilFlotte;\"Flotte en-dessous du seuil — pas de TAI.\";SI(SI(F10=0;1;F12/F10)>=1;\"Objectif atteint à \"&ARRONDI(100*SI(F10=0;1;F12/F10);1)&\"% — pas de TAI.\";\"Objectif non atteint à \"&ARRONDI(100*SI(F10=0;1;F12/F10);1)&\"% — TAI due.\"))","v":"Objectif non atteint à 30,9% — TAI due."},null,null,null,{"$f":"\"=\"","v":"="},null,null,null,null,null,null,12.48]
[null,null,null,null,null,null,null,null,null,null,null,null,13.48]
[null,{"$f":"\"Montant total de la Taxe Annuelle Incitative \"&Année","v":"Montant total de la Taxe Annuelle Incitative 2026"},null,null,null,{"$f":"SI(F6<SeuilFlotte;0;F14*F16*F18)","v":12600.536193029491},null,null,null,null,null,null,14.48]
[null,null,null,null,null,null,null,null,null,null,null,null,15.48]
[]
[null,"Calculs",null,null,null,{"$f":"\"Etat du parc \"&Année","v":"Etat du parc 2026"}]
[null,"Poids dans la flotte","Poids des VFE","Véhicule(s) très émetteur(s) renouvelé(s) dans l'année",null,"Nombre de véhicules","Type (VP/VUL)","Véhicules ...","Présent(s) toute l'année (Oui/Non)","Date de début (immatriculation)","Date de fin de détention"]
[null,{"$f":"ARRONDI(F26*(SI((DATE(Année;12;31)-SI(Année=2025;DATE(Année;3;1);DATE(Année;1;1))+1)=0;0;(SI(I26=\"Oui\";(DATE(Année;12;31)-SI(Année=2025;DATE(Année;3;1);DATE(Année;1;1))+1);MAX(0; MIN(SI(K26=\"\"; DATE(Année;12;31); DATE(Année; MOIS(K26); JOUR(K26))); DATE(Année;12;31))- MAX(DATE(Année; MOIS(J26); JOUR(J26)); SI(Année=2025;DATE(Année;3;1);DATE(Année;1;1))) + 1)))/(DATE(Année;12;31)-SI(Année=2025;DATE(Année;3;1);DATE(Année;1;1))+1)));2)","v":0},{"$f":"F26*SI(H26<>\"très émetteur(s)\";(SI(ET(H26=\"à faibles émissions (VFE)\";G26=\"VUL\");2;(SI(H26=\"éco-scoré(s)\";(SI(G26=\"VP\";1,5;SI(G26=\"VUL\";2,5;1)));1)))*SI((DATE(Année;12;31)-SI(Année=2025;DATE(Année;3;1);DATE(Année;1;1))+1)=0;0;(SI(I26=\"Oui\";(DATE(Année;12;31)-SI(Année=2025;DATE(Année;3;1);DATE(Année;1;1))+1);MAX(0; MIN(SI(K26=\"\"; DATE(Année;12;31); DATE(Année; MOIS(K26); JOUR(K26))); DATE(Année;12;31))- MAX(DATE(Année; MOIS(J26); JOUR(J26)); SI(Année=2025;DATE(Année;3;1);DATE(Année;1;1))) + 1)))/(DATE(Année;12;31)-SI(Année=2025;DATE(Année;3;1);DATE(Année;1;1))+1))); 0)","v":0},{"$f":"SI(ET(H26=\"très émetteur(s)\";J26<>\"\";DATE(Année;MOIS(J26);JOUR(J26))>=SI(Année=2025;DATE(Année;3;1);DATE(Année;1;1)));F26;0)","v":0}]
[null,{"$f":"ARRONDI(F27*(SI((DATE(Année;12;31)-SI(Année=2025;DATE(Année;3;1);DATE(Année;1;1))+1)=0;0;(SI(I27=\"Oui\";(DATE(Année;12;31)-SI(Année=2025;DATE(Année;3;1);DATE(Année;1;1))+1);MAX(0; MIN(SI(K27=\"\"; DATE(Année;12;31); DATE(Année; MOIS(K27); JOUR(K27))); DATE(Année;12;31))- MAX(DATE(Année; MOIS(J27); JOUR(J27)); SI(Année=2025;DATE(Année;3;1);DATE(Année;1;1))) + 1)))/(DATE(Année;12;31)-SI(Année=2025;DATE(Année;3;1);DATE(Année;1;1))+1)));2)","v":330},{"$f":"F27*SI(H27<>\"très émetteur(s)\";(SI(ET(H27=\"à faibles émissions (VFE)\";G27=\"VUL\");2;(SI(H27=\"éco-scoré(s)\";(SI(G27=\"VP\";1,5;SI(G27=\"VUL\";2,5;1)));1)))*SI((DATE(Année;12;31)-SI(Année=2025;DATE(Année;3;1);DATE(Année;1;1))+1)=0;0;(SI(I27=\"Oui\";(DATE(Année;12;31)-SI(Année=2025;DATE(Année;3;1);DATE(Année;1;1))+1);MAX(0; MIN(SI(K27=\"\"; DATE(Année;12;31); DATE(Année; MOIS(K27); JOUR(K27))); DATE(Année;12;31))- MAX(DATE(Année; MOIS(J27); JOUR(J27)); SI(Année=2025;DATE(Année;3;1);DATE(Année;1;1))) + 1)))/(DATE(Année;12;31)-SI(Année=2025;DATE(Année;3;1);DATE(Année;1;1))+1))); 0)","v":0},0,null,330,"VP","très émetteur(s)","Oui"]
[null,{"$f":"ARRONDI(F28*(SI((DATE(Année;12;31)-SI(Année=2025;DATE(Année;3;1);DATE(Année;1;1))+1)=0;0;(SI(I28=\"Oui\";(DATE(Année;12;31)-SI(Année=2025;DATE(Année;3;1);DATE(Année;1;1))+1);MAX(0; MIN(SI(K28=\"\"; DATE(Année;12;31); DATE(Année; MOIS(K28); JOUR(K28))); DATE(Année;12;31))- MAX(DATE(Année; MOIS(J28); JOUR(J28)); SI(Année=2025;DATE(Année;3;1);DATE(Année;1;1))) + 1)))/(DATE(Année;12;31)-SI(Année=2025;DATE(Année;3;1);DATE(Année;1;1))+1)));2)","v":5},{"$f":"F28*SI(H28<>\"très émetteur(s)\";(SI(ET(H28=\"à faibles émissions (VFE)\";G28=\"VUL\");2;(SI(H28=\"éco-scoré(s)\";(SI(G28=\"VP\";1,5;SI(G28=\"VUL\";2,5;1)));1)))*SI((DATE(Année;12;31)-SI(Année=2025;DATE(Année;3;1);DATE(Année;1;1))+1)=0;0;(SI(I28=\"Oui\";(DATE(Année;12;31)-SI(Année=2025;DATE(Année;3;1);DATE(Année;1;1))+1);MAX(0; MIN(SI(K28=\"\"; DATE(Année;12;31); DATE(Année; MOIS(K28); JOUR(K28))); DATE(Année;12;31))- MAX(DATE(Année; MOIS(J28); JOUR(J28)); SI(Année=2025;DATE(Année;3;1);DATE(Année;1;1))) + 1)))/(DATE(Année;12;31)-SI(Année=2025;DATE(Année;3;1);DATE(Année;1;1))+1))); 0)","v":5},{"$f":"SI(ET(H28=\"très émetteur(s)\";J28<>\"\";DATE(Année;MOIS(J28);JOUR(J28))>=SI(Année=2025;DATE(Année;3;1);DATE(Année;1;1)));F28;0)","v":0},null,5,"VP","à faibles émissions (VFE)","Oui"]
[null,8,12,0,null,8,"VP","éco-scoré(s)","Oui"]
[null,14.88,0,0,null,30,"VP","très émetteur(s)","Non",null,"2026-06-30"]
[null,2.52,3.7808219178082192,0,null,5,"VP","éco-scoré(s)","Non","2025-07-01"]
[null,12.6,0,25,null,25,"VP","très émetteur(s)","Non","2026-07-01"]
[null,0,0,0]
[null,"Laissez la dernière ligne vide et ne la supprimez pas"]